bitfinex/quotes_ETHUSD_20210401
["timestamp","ask_amount","ask_price","bid_price","bid_amount"]
[1617238981839,102.75573548,1929.7,1929.6,1.52e-06]
[1617238982063,108.49480284,1929.7,1929.6,1.52e-06]
[1617238982260,112.27054284,1929.7,1929.6,1.52e-06]
[1617238982461,122.81827548,1929.7,1929.6,1.52e-06]
[1617238983058,123.35926023,1929.7,1929.6,1.52e-06]
[1617238983459,178.1818842,1929.7,1929.6,1.52e-06]
[1617238984460,178.1818842,1929.7,1928.8,11.08621806]
[1617238984689,178.1818842,1929.7,1928.8,9.01322776]
[1617238984690,34.5620305,1929.4,1928.8,9.01322776]
[1617238984887,21.15911422,1929.5,1928.8,9.01322776]
[1617238984888,30.38,1929.2,1928.8,9.01322776]
[1617238985088,5.77574,1928.9,1928.8,9.01322776]
[1617238985287,35.77574,1928.9,1928.8,9.01322776]
[1617238985488,0.22574,1928.9,1928.8,9.01322776]
[1617238985888,0.22574,1928.9,1928.8,9.29322776]
[1617238986087,0.38831353,1928.9,1928.8,9.29322776]
[1617238986287,0.38831353,1928.9,1928.8,9.01322776]
[1617238986487,39.73831353,1928.9,1928.8,9.01322776]
[1617238986688,47.73831353,1928.9,1928.8,9.01322776]
[1617238986891,8.38831353,1928.9,1928.8,9.01322776]
[1617238987514,11.93831353,1928.9,1928.8,9.01322776]
[1617238987713,3.93831353,1928.9,1928.8,9.01322776]
[1617238990539,8.93831353,1928.9,1928.8,9.01322776]
[1617238990940,16.93831353,1928.9,1928.8,9.01322776]
[1617238991141,46.93831353,1928.9,1928.8,9.01322776]
[1617238991541,16.93831353,1928.9,1928.8,9.01322776]
[1617238991740,11.93831353,1928.9,1928.8,9.01322776]
[1617238992145,3.93831353,1928.9,1928.8,9.01322776]
[1617238992762,7.48831353,1928.9,1928.8,9.01322776]
[1617238993164,15.48831353,1928.9,1928.8,9.01322776]
[1617238994766,15.48831353,1928.9,1928.8,9.39322776]
[1617238995991,15.48831353,1928.9,1928.8,9.01322776]
[1617238996394,16.18831353,1928.9,1928.8,9.01322776]
[1617238996792,16.17476684,1928.9,1928.8,9.01322776]
[1617238998017,19.72476684,1928.9,1928.8,9.01322776]
[1617238998816,19.72476684,1928.9,1928.8,8.31322776]
[1617238999416,50.12476684,1928.9,1928.8,8.31322776]
[1617238999616,56.27388106,1928.9,1928.8,8.31322776]
[1617239000217,55.87388106,1928.9,1928.8,8.31322776]
[1617239001038,25.87388106,1928.9,1928.8,8.31322776]
[1617239001237,19.72476684,1928.9,1928.8,8.31322776]
[1617239001436,25.87388106,1928.9,1928.8,8.31322776]
[1617239001637,19.72476684,1928.9,1928.8,8.31322776]
[1617239002238,25.87388106,1928.9,1928.8,8.31322776]
[1617239002440,55.87388106,1928.9,1928.8,8.31322776]
[1617239002642,19.72476684,1928.9,1928.8,8.31322776]
[1617239003267,23.27476684,1928.9,1928.8,7.61322776]
[1617239005273,59.42388106,1928.9,1928.8,7.61322776]
[1617239005890,53.27476684,1928.9,1928.8,7.61322776]
[1617239006491,59.42388106,1928.9,1928.8,7.61322776]
[1617239006690,29.42388106,1928.9,1928.8,7.61322776]
[1617239006891,23.27476684,1928.9,1928.8,7.61322776]
[1617239007490,59.42388106,1928.9,1928.8,7.61322776]
[1617239008092,29.42388106,1928.9,1928.8,7.61322776]
[1617239008315,23.27476684,1928.9,1928.8,7.61322776]
[1617239008514,26.82476684,1928.9,1928.8,7.61322776]
[1617239010936,26.82476684,1928.9,1928.8,8.01322776]
[1617239011538,26.82476684,1928.9,1928.8,7.61322776]
[1617239013337,33.11388106,1928.9,1928.8,7.61322776]
[1617239013785,36.66388106,1928.9,1928.8,7.61322776]
[1617239014185,66.66388106,1928.9,1928.8,7.61322776]
[1617239014385,36.66388106,1928.9,1928.8,7.61322776]
[1617239014587,36.52388106,1928.9,1928.8,7.61322776]
[1617239014784,30.37476684,1928.9,1928.8,7.61322776]
[1617239016393,5.96446684,1928.9,1928.8,7.61322776]
[1617239016590,5.96446684,1928.9,1928.8,8.01322776]
[1617239016795,35.96446684,1928.9,1928.8,8.01322776]
[1617239016991,35.96446684,1928.9,1928.8,7.61322776]
[1617239016992,5.96446684,1928.9,1928.8,7.61322776]
[1617239019061,39.51446684,1928.9,1928.8,7.61322776]
[1617239019261,15.66358106,1928.9,1928.8,7.61322776]
[1617239019462,17.51446684,1928.9,1928.8,7.61322776]
[1617239020061,17.51446684,1928.9,1928.8,7.78486367]
[1617239021266,9.51446684,1928.9,1928.8,7.78486367]
[1617239021467,9.51446684,1928.9,1928.8,12.79916545]
[1617239021667,9.51446684,1928.9,1928.8,15.55916545]
[1617239021868,9.51446684,1928.9,1928.8,25.53376807]
[1617239022071,3.55,1929.7,1928.9,11.7]
[1617239022269,3.55,1929.7,1929.0,16.5302518]
[1617239022668,3.55,1929.7,1929.0,27.7202518]
[1617239022868,3.55,1929.7,1929.4,2.071883]
[1617239023068,3.55,1929.7,1929.5,12.74448024]
[1617239023268,3.55,1929.7,1929.5,18.18448024]
[1617239023671,3.55,1929.7,1929.5,20.78616286]
[1617239023869,3.55,1929.7,1929.6,3.0]
[1617239024071,3.55,1929.7,1929.6,1.6]
[1617239024269,7.1,1929.7,1929.6,1.6]
[1617239024469,7.1,1929.7,1929.6,7.82730024]
[1617239025875,7.8,1929.7,1929.6,7.82730024]
[1617239026698,5.9499,1929.7,1929.6,7.82730024]
[1617239028097,5.9499,1929.7,1929.6,3.16]
[1617239028698,5.9499,1929.7,1929.6,4.04]
[1617239028901,5.9499,1929.7,1929.6,7.48091268]
[1617239029317,5.9499,1929.7,1929.6,6.28091268]
[1617239029515,9.4999,1929.7,1929.6,6.28091268]
[1617239029714,7.6604,1929.7,1929.6,6.28091268]
[1617239030115,7.6604,1929.7,1929.6,6.4869351]
[1617239030314,7.6604,1929.7,1929.6,7.6869351]
[1617239030714,7.6604,1929.7,1929.6,12.6969351]
[1617239031114,7.6604,1929.7,1929.6,7.6869351]
[1617239032743,5.8137,1929.7,1929.6,7.3069351]
[1617239032945,5.8137,1929.7,1929.6,3.86602242]
[1617239033547,5.8137,1929.7,1929.6,3.81602242]
[1617239033946,5.8137,1929.7,1929.6,7.63799036]
[1617239034564,5.8137,1929.7,1929.6,6.43799036]
[1617239034768,9.3637,1929.7,1929.6,6.43799036]
[1617239035165,9.3637,1929.7,1929.6,6.05799036]
[1617239035365,9.3637,1929.7,1929.6,2.61602242]
[1617239035966,9.3637,1929.7,1929.6,0.20602242]
[1617239035967,15.0037,1929.7,1929.6,0.20602242]
[1617239036166,17.7537,1929.7,1929.6,0.20602242]
[1617239038994,24.5037,1929.7,1929.6,0.20602242]
[1617239039397,24.5037,1929.7,1929.6,0.34179788]
[1617239040020,28.0537,1929.7,1929.6,0.34179788]
[1617239040834,29.2537,1929.7,1929.6,0.34179788]
[1617239042233,29.2537,1929.7,1929.6,0.13577546]
[1617239042841,29.2537,1929.7,1929.6,5.46e-06]
[1617239043044,34.2637,1929.7,1929.6,5.46e-06]
[1617239043240,34.2637,1929.7,1928.9,7.77335]
[1617239043241,20.82910876,1929.6,1928.9,7.77335]
[1617239043441,0.4,1929.2,1928.9,7.77335]
[1617239043639,0.54,1929.2,1928.9,7.77335]
[1617239043840,0.14,1929.2,1928.9,7.77335]
[1617239044239,0.53,1929.2,1928.9,7.77335]
[1617239044439,0.53,1929.2,1929.1,0.18523539]
[1617239044644,11.48911422,1929.4,1929.1,0.18523539]
[1617239044840,7.6,1929.3,1929.1,0.18523539]
[1617239045076,2.88,1929.2,1929.1,0.18523539]
[1617239045273,11.55,1929.3,1929.1,0.18523539]
[1617239046075,11.55,1929.3,1929.1,7.95743539]
[1617239046275,3.55,1929.3,1929.1,7.95743539]
[1617239046474,8.0,1929.2,1929.1,7.95743539]
[1617239046675,3.55,1929.3,1929.1,7.95743539]
[1617239048691,3.55,1929.3,1929.1,8.23743539]
[1617239049493,3.55,1929.3,1929.1,11.01743539]
[1617239049898,3.55,1929.3,1929.1,13.50384584]
[1617239050528,3.55,1929.3,1929.1,22.86320136]
[1617239050529,7.1,1929.3,1929.1,22.86320136]
[1617239050727,7.1,1929.3,1929.2,1.50168262]
[1617239050926,5.2572,1929.3,1929.2,10.07708262]
[1617239051126,5.2572,1929.3,1929.2,13.47708262]
[1617239051327,5.2572,1929.3,1929.2,14.67708262]
[1617239051529,5.2572,1929.3,1929.2,6.27708262]
[1617239051730,5.2572,1929.3,1929.2,14.07879212]
[1617239051928,5.2572,1929.3,1929.2,14.44479212]
[1617239052128,5.2572,1929.3,1929.2,15.64479212]
[1617239052330,5.41973983,1929.3,1929.2,18.64479212]
[1617239052532,5.41973983,1929.3,1929.2,24.30479212]
[1617239053544,5.31973983,1929.3,1929.2,24.30479212]
[1617239053743,3.48083983,1929.3,1929.2,24.30479212]
[1617239054744,3.48083983,1929.3,1929.2,23.60479212]
[1617239055770,7.03083983,1929.3,1929.2,23.60479212]
[1617239056770,5.19243983,1929.3,1929.2,23.60479212]
[1617239057373,5.19243983,1929.3,1929.2,22.52339212]
[1617239059805,3.35513983,1929.3,1929.2,22.52339212]
[1617239061029,6.90513983,1929.3,1929.2,27.53339212]
[1617239062227,6.90513983,1929.3,1929.2,26.7317095]
[1617239062827,5.06573983,1929.3,1929.2,26.7317095]
[1617239063227,5.06573983,1929.3,1929.2,20.29866]
[1617239065850,3.22243983,1929.3,1929.2,20.29866]
[1617239066073,3.22243983,1929.3,1929.2,15.28866]
[1617239066274,6.77243983,1929.3,1929.2,15.00866]
[1617239067076,6.77243983,1929.3,1929.2,14.62866]
[1617239067476,6.77243983,1929.3,1929.2,8.96866]
[1617239067677,6.77243983,1929.3,1929.2,7.76866]
[1617239068480,7.16243983,1929.3,1929.2,7.76866]
[1617239068898,14.71155405,1929.3,1929.2,1.2]
[1617239069098,10.14,1929.2,1929.1,0.18523539]
[1617239069298,17.68911422,1929.2,1929.1,0.18523539]
[1617239069698,30.68911422,1929.2,1929.1,0.18523539]
[1617239070101,25.68911422,1929.2,1929.1,7.95804539]
[1617239070301,11.24,1929.2,1929.1,7.95804539]
[1617239070700,8.0,1929.2,1929.1,7.95804539]
[1617239070902,15.30243983,1929.3,1929.1,7.95804539]
[1617239071099,6.34,1929.2,1929.1,7.90804539]
[1617239071519,9.89,1929.2,1929.1,7.90804539]
[1617239072720,3.94,1929.2,1929.1,7.90804539]
[1617239076571,9.14,1929.2,1929.1,7.90804539]
[1617239076771,12.69,1929.2,1929.1,7.90804539]
[1617239077574,7.49,1929.2,1929.1,7.90804539]
[1617239078375,7.1,1929.2,1929.1,7.90804539]
[1617239082228,10.65,1929.2,1929.1,7.90804539]
[1617239084852,10.65,1929.2,1929.1,8.18804539]
[1617239085053,10.65,1929.2,1929.1,11.32804539]
[1617239086257,10.65,1929.2,1929.1,11.04804539]
[1617239086660,18.65,1929.2,1929.1,11.04804539]
[1617239086855,10.65,1929.2,1929.1,11.04804539]
[1617239087293,14.2,1929.2,1929.1,11.04804539]
[1617239087695,14.2,1929.2,1929.1,7.90804539]
[1617239088299,22.2,1929.2,1929.1,7.90804539]
[1617239088497,14.2,1929.2,1929.1,7.90804539]
[1617239088896,14.2,1929.2,1929.1,10.68804539]
[1617239090502,14.2,1929.2,1929.1,7.90804539]
[1617239092532,17.75,1929.2,1929.1,7.90804539]
[1617239093728,25.75,1929.2,1929.1,7.90804539]
[1617239094327,17.75,1929.2,1929.1,7.90804539]
[1617239095149,25.75,1929.2,1929.1,7.90804539]
[1617239096553,17.75,1929.2,1929.1,7.90804539]
[1617239096755,25.75,1929.2,1929.1,7.90804539]
[1617239097354,26.14,1929.2,1929.1,7.90804539]
[1617239097777,29.69,1929.2,1929.1,7.90804539]
[1617239100403,21.69,1929.2,1929.1,7.90804539]
[1617239100604,21.3,1929.2,1929.1,7.90804539]
[1617239101006,21.71,1929.2,1929.1,7.90804539]
[1617239101212,29.71,1929.2,1929.1,0.13523539]
[1617239101410,37.25911422,1929.2,1929.1,0.13523539]
[1617239102411,38.45911422,1929.2,1929.1,0.13523539]
[1617239103449,41.20911422,1929.2,1928.8,6.74846315]
[1617239103649,0.14,1929.1,1928.8,6.74846315]
[1617239103853,6.6,1929.0,1928.8,6.74846315]
[1617239104049,6.6,1929.0,1928.9,7.77352]
[1617239105655,0.4,1929.0,1928.9,7.77352]
[1617239107259,7.3,1929.0,1928.9,7.77352]
[1617239107457,7.3,1929.0,1928.9,7.9369733]
[1617239108277,6.9,1929.0,1928.9,7.9369733]
[1617239108477,0.14,1929.1,1928.9,7.9369733]
[1617239108677,4.4,1929.0,1928.9,7.9369733]
[1617239110999,7.95,1929.0,1928.9,7.9369733]
[1617239111401,15.95,1929.0,1928.9,7.9369733]
[1617239113202,7.95,1929.0,1928.9,7.9369733]
[1617239113831,7.88,1929.0,1928.9,7.9369733]
[1617239114031,3.55,1929.0,1928.9,7.9369733]
[1617239114831,3.71256511,1929.0,1928.9,7.9369733]
[1617239116053,10.26256511,1929.0,1928.9,7.9369733]
[1617239116254,13.81256511,1929.0,1928.9,7.9369733]
[1617239116452,21.81256511,1929.0,1928.9,7.9369733]
[1617239118059,27.91366511,1929.0,1928.9,7.9369733]
[1617239118699,21.36366511,1929.0,1928.9,7.9369733]
[1617239119099,15.26256511,1929.0,1928.9,7.9369733]
[1617239119501,7.26256511,1929.0,1928.9,7.9369733]
[1617239120900,15.96256511,1929.0,1928.9,7.9369733]
[1617239121505,19.51256511,1929.0,1928.9,7.9369733]
[1617239122305,19.91256511,1929.0,1928.9,7.9369733]
[1617239122907,19.91256511,1929.0,1928.9,7.2369733]
[1617239124131,21.11256511,1929.0,1928.9,7.2369733]
[1617239124334,20.70586511,1929.0,1928.9,7.2369733]
[1617239124532,20.70586511,1929.0,1928.9,0.1634533]
[1617239124731,21.90586511,1929.0,1928.9,0.1634533]
[1617239124930,30.75586511,1929.0,1928.9,0.1634533]
[1617239125133,29.55586511,1929.0,1928.9,0.1634533]
[1617239125532,37.03944692,1929.0,1928.9,0.1634533]
[1617239125732,36.00586511,1929.0,1928.9,0.1634533]
[1617239126132,43.78178511,1929.0,1928.9,0.1634533]
[1617239126334,15.9865467,1928.9,1928.6,1.0]
[1617239126558,0.39,1928.8,1928.6,1.0]
[1617239126757,7.32800578,1928.8,1928.6,1.0]
[1617239126957,15.32800578,1928.8,1928.6,1.0]
[1617239127158,12.29,1928.7,1928.6,1.0]
[1617239127357,7.04,1928.7,1928.6,1.0]
[1617239127558,11.94,1928.8,1928.6,1.0]
[1617239127758,19.62911422,1928.8,1928.6,1.184968]
[1617239127959,19.23911422,1928.8,1928.6,1.184968]
[1617239128159,11.36,1928.7,1928.6,1.184968]
[1617239128561,18.90911422,1928.7,1928.6,1.184968]
[1617239128761,26.90911422,1928.7,1928.6,8.960208]
[1617239128961,19.36,1928.7,1928.6,8.960208]
[1617239129182,10.96,1928.7,1928.6,8.960208]
[1617239129782,2.96,1928.7,1928.6,8.960208]
[1617239130185,3.69,1928.8,1928.6,8.960208]
[1617239132003,7.24,1928.8,1928.6,8.960208]
[1617239132212,3.56,1928.7,1928.6,8.960208]
[1617239132406,3.56,1928.7,1928.6,9.240208]
[1617239133206,15.1,1928.8,1928.6,9.650208]
[1617239133407,15.1,1928.8,1928.6,11.960208]
[1617239133606,7.1,1928.8,1928.6,8.960208]
[1617239134007,7.8,1928.8,1928.6,9.240208]
[1617239134451,7.8,1928.8,1928.6,8.960208]
[1617239134851,7.8,1928.8,1928.6,1.184968]
[1617239135252,7.8,1928.8,1928.6,1.464968]
[1617239136455,7.8,1928.8,1928.6,1.844968]
[1617239136651,7.8,1928.8,1928.6,9.619708]
[1617239136851,8.84749608,1928.8,1928.6,12.659708]
[1617239137060,7.8,1928.8,1928.6,12.659708]
[1617239137264,11.35,1928.8,1928.6,12.659708]
[1617239137659,11.35,1928.8,1928.6,12.379708]
[1617239138060,11.35,1928.8,1928.6,4.604968]
[1617239138261,11.35,1928.8,1928.6,1.184968]
[1617239138862,12.39708132,1928.8,1928.6,1.184968]
[1617239139066,18.89911422,1928.8,1928.6,1.184968]
[1617239139264,8.0,1928.7,1928.6,1.184968]
[1617239139463,16.35,1928.7,1928.6,1.184968]
[1617239141887,16.35,1928.7,1928.6,0.484968]
[1617239142508,20.93012925,1928.7,1928.6,0.484968]
[1617239142908,13.44272386,1928.7,1928.6,0.484968]
[1617239143108,5.44272386,1928.7,1928.6,0.884968]
[1617239143307,4.41259461,1928.7,1928.6,0.884968]
[1617239144108,4.41259461,1928.7,1928.6,8.658888]
[1617239147662,7.96259461,1928.7,1928.6,8.658888]
[1617239149860,7.96259461,1928.7,1928.6,9.68587717]
[1617239150101,7.96259461,1928.7,1928.6,8.658888]
[1617239150901,7.96259461,1928.7,1928.6,8.258888]
[1617239151102,7.96259461,1928.7,1928.6,8.668888]
[1617239152910,11.51259461,1928.7,1928.6,8.668888]
[1617239156741,11.51259461,1928.7,1928.6,0.484968]
[1617239157540,16.16259461,1928.7,1928.6,1.53463588]
[1617239157739,23.71170883,1928.7,1928.6,1.53463588]
[1617239157959,27.26170883,1928.7,1928.6,0.484968]
[1617239158160,30.61170883,1928.7,1928.6,0.484968]
[1617239159361,31.01170883,1928.7,1928.6,8e-06]
[1617239159561,31.01170883,1928.7,1928.1,1.0]
[1617239159562,31.15170883,1928.7,1928.1,1.0]
[1617239159761,10.89,1928.2,1928.1,1.0]
[1617239159964,18.0647,1928.2,1928.1,1.0]
[1617239160160,26.0647,1928.2,1928.1,1.0]
[1617239160586,17.6747,1928.2,1928.1,1.0]
[1617239161000,17.6747,1928.2,1928.1,0.75]
[1617239161802,17.6747,1928.2,1928.1,0.65]
[1617239162003,18.0747,1928.2,1928.1,0.65]
[1617239162608,7.5747,1928.2,1928.1,0.65]
[1617239162807,0.4,1928.2,1928.1,0.65]
[1617239163212,3.95,1928.2,1928.1,0.65]
[1617239163414,3.55,1928.2,1928.1,0.65]
[1617239166434,3.71263677,1928.2,1928.1,0.65]
[1617239166835,3.71263677,1928.2,1928.1,8.42625]
[1617239168237,7.26263677,1928.2,1928.1,8.42625]
[1617239172088,7.26263677,1928.2,1928.1,12.72572226]
[1617239172487,7.26263677,1928.2,1928.1,13.13572226]
[1617239172686,7.26263677,1928.2,1928.1,17.19572226]
[1617239172687,2.08078677,1928.2,1928.1,17.19572226]
[1617239173092,14.9,1928.7,1928.4,5.9591916]
[1617239173287,14.9,1928.7,1928.5,4.501]
[1617239173487,14.9,1928.7,1928.6,7.77252]
[1617239173711,18.45,1928.7,1928.6,7.77252]
[1617239174110,18.45,1928.7,1928.6,11.14606072]
[1617239174312,18.45,1928.7,1928.6,12.45260314]
[1617239174511,18.45,1928.7,1928.6,11.42606072]
[1617239176335,18.45,1928.7,1928.6,11.82606072]
[1617239177140,18.45,1928.7,1928.6,8.45252]
[1617239177534,18.61259039,1928.7,1928.6,8.45252]
[1617239177737,18.61259039,1928.7,1928.6,8.61159007]
[1617239178736,22.16259039,1928.7,1928.6,8.61159007]
[1617239180381,22.16259039,1928.7,1928.6,7.93159007]
[1617239181182,22.16259039,1928.7,1928.6,8.21159007]
[1617239183595,23.20277828,1928.7,1928.6,8.21159007]
[1617239183791,22.16259039,1928.7,1928.6,8.21159007]
[1617239184217,25.71259039,1928.7,1928.6,8.21159007]
[1617239187437,25.71259039,1928.7,1928.6,7.93159007]
[1617239187639,26.09259039,1928.7,1928.6,7.93159007]
[1617239188441,25.71259039,1928.7,1928.6,7.93159007]
[1617239189042,26.10259039,1928.7,1928.6,0.15907007]
[1617239189462,26.10259039,1928.7,1928.4,10.36336]
[1617239189463,37.20170461,1928.7,1928.4,10.36336]
[1617239189866,36.81170461,1928.7,1928.4,10.64336]
[1617239190065,4.04,1928.6,1928.4,10.64336]
[1617239190663,4.43,1928.6,1928.4,10.64336]
[1617239191264,10.82,1928.5,1928.4,10.64336]
[1617239191466,5.12,1928.5,1928.4,10.64336]
[1617239192292,29.40259039,1928.7,1928.4,10.64336]
[1617239192489,6.08,1928.6,1928.4,10.64336]
[1617239193089,6.47,1928.6,1928.4,10.36336]
[1617239193289,6.64,1928.5,1928.4,10.36336]
[1617239194289,29.26259039,1928.7,1928.4,10.36336]
[1617239194490,3.55,1928.5,1928.4,10.36336]
[1617239195744,3.94,1928.5,1928.4,10.36336]
[1617239196243,12.24,1928.5,1928.4,10.36336]
[1617239197447,11.85,1928.5,1928.4,10.36336]
[1617239199648,3.55,1928.5,1928.4,10.36336]
[1617239199844,7.1,1928.5,1928.4,10.36336]
[1617239202692,7.1,1928.5,1928.4,11.38712618]
[1617239202894,7.1,1928.5,1928.4,16.77006]
[1617239203096,7.1,1928.5,1928.4,22.21006]
[1617239203697,1.91869,1928.5,1928.4,22.60006]
[1617239204095,29.1,1928.7,1928.4,22.60006]
[1617239204296,30.12888488,1928.7,1928.6,0.41]
[1617239204500,29.1,1928.7,1928.6,9.22717871]
[1617239204696,29.1,1928.7,1928.6,13.84717871]
[1617239205096,32.65,1928.7,1928.6,12.80197]
[1617239205316,32.65,1928.7,1928.6,13.08197]
[1617239206740,32.65,1928.7,1928.6,12.67197]
[1617239206939,32.65,1928.7,1928.6,15.67197]
[1617239207142,32.65,1928.7,1928.6,12.67197]
[1617239208442,32.65,1928.7,1928.6,17.68197]
[1617239208643,32.65,1928.7,1928.6,20.68197]
[1617239208843,32.81259039,1928.7,1928.6,20.68197]
[1617239209445,32.81259039,1928.7,1928.6,17.68197]
[1617239209845,32.81259039,1928.7,1928.6,15.67197]
[1617239210044,32.81259039,1928.7,1928.6,12.67197]
[1617239210245,36.36259039,1928.7,1928.6,12.67197]
[1617239211067,37.40443744,1928.7,1928.6,12.67197]
[1617239211666,37.40443744,1928.7,1928.6,12.39197]
[1617239211866,37.40443744,1928.7,1928.6,17.40197]
[1617239213298,37.40443744,1928.7,1928.6,12.39197]
[1617239213691,36.36259039,1928.7,1928.6,12.39197]
[1617239214293,36.36259039,1928.7,1928.6,17.59785742]
[1617239214294,36.77259039,1928.7,1928.6,17.59785742]
[1617239214493,36.77259039,1928.7,1928.6,12.97785742]
[1617239214692,44.32170461,1928.7,1928.6,12.97785742]
[1617239214896,36.77259039,1928.7,1928.6,12.97785742]
[1617239215093,36.77259039,1928.7,1928.6,16.59785742]
[1617239215494,39.91259039,1928.7,1928.6,16.59785742]
[1617239216319,39.91259039,1928.7,1928.6,11.58785742]
[1617239217321,39.91259039,1928.7,1928.6,19.75165742]
[1617239218751,39.91259039,1928.7,1928.6,24.76165742]
[1617239219151,40.32259039,1928.7,1928.6,24.76165742]
[1617239219351,40.32259039,1928.7,1928.6,21.14165742]
[1617239219753,39.91259039,1928.7,1928.6,21.14165742]
[1617239220753,43.46259039,1928.7,1928.6,21.14165742]
[1617239220961,43.46259039,1928.7,1928.6,26.56165742]
[1617239222364,43.46259039,1928.7,1928.6,21.14165742]
[1617239223614,43.85259039,1928.7,1928.6,16.13165742]
[1617239223813,43.85259039,1928.7,1928.6,7.96785742]
[1617239224013,53.85259039,1928.7,1928.6,7.96785742]
[1617239224213,53.46259039,1928.7,1928.6,7.96785742]
[1617239224416,61.01170461,1928.7,1928.6,7.96785742]
[1617239224814,53.46259039,1928.7,1928.6,7.96785742]
[1617239225814,57.01259039,1928.7,1928.6,7.96785742]
[1617239226016,57.01259039,1928.7,1928.6,8.24785742]
[1617239226419,58.05433374,1928.7,1928.6,8.24785742]
[1617239226615,57.01259039,1928.7,1928.6,12.56785742]
[1617239227618,58.03981612,1928.7,1928.6,12.56785742]
[1617239227818,57.01259039,1928.7,1928.6,12.56785742]
[1617239229251,57.01259039,1928.7,1928.6,13.59460724]
[1617239229451,57.01259039,1928.7,1928.6,12.56785742]
[1617239230255,57.01259039,1928.7,1928.6,15.59850028]
[1617239231054,60.56259039,1928.7,1928.6,15.59850028]
[1617239231496,60.56259039,1928.7,1928.6,15.98850028]
[1617239231898,58.71959039,1928.7,1928.6,15.98850028]
[1617239233098,58.71959039,1928.7,1928.6,12.95785742]
[1617239233701,56.31259039,1928.7,1928.6,16.33057127]
[1617239233902,56.31259039,1928.7,1928.6,16.34457127]
[1617239233903,43.17833039,1928.7,1928.6,16.34457127]
[1617239234103,22.45845039,1928.7,1928.6,8.57260127]
[1617239234302,3.41745417,1928.7,1928.6,8.57260127]
[1617239234503,0.16259039,1928.7,1928.6,15.08206379]
[1617239234708,1.03064774,1928.7,1928.6,17.67191939]
[1617239234906,11.07809444,1929.0,1928.8,3.56791982]
[1617239235106,11.07809444,1929.0,1928.8,3.86891982]
[1617239235308,11.07809444,1929.0,1928.9,12.78027]
[1617239235505,11.07809444,1929.0,1928.9,19.52027]
[1617239235909,12.10619722,1929.0,1928.9,19.52027]
[1617239236308,15.65619722,1929.0,1928.9,19.52027]
[1617239236508,15.65619722,1929.0,1928.9,27.88707]
[1617239236707,14.62809444,1929.0,1928.9,27.88707]
[1617239236909,14.62809444,1929.0,1928.9,29.08707]
[1617239237508,14.62809444,1929.0,1928.9,29.48707]
[1617239241517,18.17809444,1929.0,1928.9,29.48707]
[1617239241717,18.17809444,1929.0,1928.9,28.28707]
[1617239242118,18.17809444,1929.0,1928.9,27.88707]
[1617239244120,18.17809444,1929.0,1928.9,32.47707]
[1617239244729,18.17809444,1929.0,1928.9,27.88707]
[1617239245730,18.12809444,1929.0,1928.9,27.88707]
[1617239246334,18.12809444,1929.0,1928.9,29.47707]
[1617239246532,21.67809444,1929.0,1928.9,29.47707]
[1617239247760,2.53910594,1929.0,1928.9,29.47707]
[1617239247959,21.3,1929.2,1929.0,0.301]
[1617239248160,21.3,1929.2,1929.1,0.4]
[1617239248359,21.3,1929.2,1929.1,13.17965]
[1617239248559,21.3,1929.2,1929.1,17.41965]
[1617239249560,21.3,1929.2,1929.1,17.01965]
[1617239251982,24.85,1929.2,1929.1,17.01965]
[1617239253607,24.85,1929.2,1929.1,30.01965]
[1617239254007,24.8,1929.2,1929.1,30.01965]
[1617239255238,24.8,1929.2,1929.1,31.18125]
[1617239256632,24.8,1929.2,1929.1,30.29965]
[1617239257232,28.35,1929.2,1929.1,30.29965]
[1617239258064,1.85,1929.2,1929.1,30.29965]
[1617239262686,5.4,1929.2,1929.1,31.06565]
[1617239264113,5.4,1929.2,1929.1,30.29965]
[1617239264513,0.2202405,1929.2,1929.1,30.29965]
[1617239264717,0.2202405,1929.2,1929.1,31.45305]
[1617239264913,6.77243983,1929.3,1929.1,31.45305]
[1617239265114,6.77243983,1929.3,1929.2,5.39]
[1617239265315,6.77243983,1929.3,1929.2,10.15113127]
[1617239265515,6.77243983,1929.3,1929.2,17.92077127]
[1617239265743,6.77243983,1929.3,1929.2,17.54077127]
[1617239267744,10.32243983,1929.3,1929.2,17.54077127]
[1617239271190,10.32243983,1929.3,1929.2,17.94077127]
[1617239271388,10.32243983,1929.3,1929.2,32.66077127]
[1617239271589,0.66535083,1929.4,1929.3,18.35]
[1617239271788,0.66535083,1929.4,1929.3,37.28117708]
[1617239271987,0.69999454,1929.6,1929.3,33.67768708]
[1617239272189,0.69999454,1929.6,1929.5,10.41]
[1617239272389,0.69999454,1929.6,1929.5,10.69]
[1617239272592,0.69999454,1929.6,1929.5,18.69]
[1617239272792,0.69999454,1929.6,1929.5,36.98982]
[1617239272989,4.24999454,1929.6,1929.5,36.98982]
[1617239274010,2.41279454,1929.6,1929.5,36.98982]
[1617239275412,2.41279454,1929.6,1929.5,36.58982]
[1617239275615,2.81279454,1929.6,1929.5,18.29982]
[1617239275815,2.81279454,1929.6,1929.5,10.5321]
[1617239276012,2.81279454,1929.6,1929.5,2.8]
[1617239276236,2.81279454,1929.6,1929.4,3.88397]
[1617239276437,2.41279454,1929.6,1929.2,0.12113127]
[1617239276635,2.41279454,1929.6,1929.3,0.28]
[1617239276836,2.41279454,1929.6,1929.3,8.05075]
[1617239277436,3.44544913,1929.6,1929.3,8.05075]
[1617239277636,2.41279454,1929.6,1929.3,8.05075]
[1617239278238,5.96279454,1929.6,1929.5,5.01]
[1617239278638,5.91279454,1929.6,1929.5,5.01]
[1617239279063,5.91279454,1929.6,1929.4,5.8808]
[1617239279262,5.91279454,1929.6,1929.5,5.01]
[1617239279463,5.91279454,1929.6,1929.5,5.29]
[1617239279663,5.91279454,1929.6,1929.5,14.1368]
[1617239279863,5.91279454,1929.6,1929.5,17.5768]
[1617239280264,5.91279454,1929.6,1929.5,25.34653]
[1617239280890,5.91279454,1929.6,1929.5,33.34653]
[1617239281486,5.91279454,1929.6,1929.5,33.75653]
[1617239282488,5.91279454,1929.6,1929.5,33.34653]
[1617239283288,9.46279454,1929.6,1929.5,33.34653]
[1617239283689,9.46279454,1929.6,1929.5,38.73653]